fUSD/lending_fUSD_20260522
["ID","MTS","AMOUNT","RATE_DAILY","PERIOD"]
[422818278,1779461441000,-500.0,0.00013698,2]
[422818287,1779461441000,-500.0,0.00013698,2]
[422818284,1779461441000,-500.0,0.00013698,2]
[422818276,1779461441000,-508.06821026,0.00013698,2]
[422818306,1779461441000,-200.0,0.00013931,2]
[422818346,1779461441000,-585.25089225,0.00014292,2]
[422818309,1779461441000,-3634.0,0.00013931,2]
[422818328,1779461441000,-500.0,0.0001411,2]
[422818332,1779461441000,-152.0,0.00014212,7]
[422818331,1779461441000,-152.0,0.00014212,7]
[422818334,1779461441000,-587.0,0.00014222,2]
[422818341,1779461441000,-63940.31801879,0.0001425,2]
[422818336,1779461441000,-306.89556699,0.0001424,2]
[422818342,1779461441000,-1935.66774388,0.00014274,2]
[422818326,1779461441000,-224.0,0.00014055,2]
[422818335,1779461441000,-150.0,0.00014237,2]
[422818333,1779461441000,-480.7,0.00014214,2]
[422818339,1779461441000,-270.808128,0.0001425,2]
[422818337,1779461441000,-2000.0,0.00014246,2]
[422818340,1779461441000,-322197.49935903,0.0001425,2]
[422818344,1779461441000,-2324.66774388,0.00014292,2]
[422818343,1779461441000,-415.33225612,0.00014274,2]
[422818345,1779461441000,-348.91373387,0.00014292,2]
[422818338,1779461441000,-166.66,0.00014247,2]
[422818329,1779461441000,-3022.46563174,0.00014119,2]
[422818307,1779461441000,-200.0,0.00013931,2]
[422818327,1779461441000,-166.66,0.0001411,2]
[422818319,1779461441000,-286.768513,0.00014035,2]
[422818318,1779461441000,-200.0,0.00014,2]
[422818311,1779461441000,-187.176031,0.00013965,2]
[422818313,1779461441000,-334.056489,0.00013965,2]
[422818312,1779461441000,-305.914384,0.00013965,2]
[422818314,1779461441000,-166.66,0.00013973,2]
[422818317,1779461441000,-12991.667358,0.00013989,2]
[422818316,1779461441000,-4789.50403844,0.00013988,2]
[422818315,1779461441000,-150.0,0.00013987,2]
[422818320,1779461441000,-1588.0,0.0001404,2]
[422818321,1779461441000,-1588.0,0.0001404,2]
[422818322,1779461441000,-2672.45,0.0001404,2]
[422818324,1779461441000,-1588.0,0.0001404,2]
[422818323,1779461441000,-174.47,0.0001404,2]
[422818325,1779461441000,-377.29,0.00014043,2]
[422818310,1779461441000,-207.864055,0.00013965,2]
[422818330,1779461441000,-237.315401,0.00014207,2]
[422818352,1779461442000,-9182.50618221,0.00014292,2]
[422818351,1779461442000,-1530.67166844,0.00014292,2]
[422818354,1779461443000,-3617.59672304,0.00014292,2]
[422818365,1779461443000,-1889.79,0.00014497,2]
[422818363,1779461443000,-276.5,0.00014497,2]
[422818367,1779461443000,-52632.38,0.00014497,2]
[422818369,1779461443000,-1026.0,0.0001458,5]
[422818361,1779461443000,-433.0,0.00014426,2]
[422818362,1779461443000,-150.0,0.00014487,2]
[422818364,1779461443000,-2240.13,0.00014497,2]
[422818359,1779461443000,-1000.0,0.00014375,2]
[422818358,1779461443000,-1100.0,0.0001437,2]
[422818357,1779461443000,-593.35761011,0.0001437,2]
[422818355,1779461443000,-2335.0,0.0001436,2]
[422818356,1779461443000,-163.0,0.0001436,2]
[422818353,1779461443000,-191.56445275,0.00014292,2]
[422818360,1779461443000,-166.66,0.00014384,2]
[422818368,1779461443000,-3022.46563174,0.00014509,2]
[422818375,1779461443000,-152.0,0.00014699,7]
[422818371,1779461443000,-12991.667358,0.00014596,2]
[422818387,1779461443000,-239560.58032052,0.00014788,2]
[422818385,1779461443000,-4209.8730638,0.00014788,2]
[422818370,1779461443000,-4789.50403844,0.00014596,2]
[422818382,1779461443000,-5291.0870774,0.00014784,2]
[422818383,1779461443000,-156254.6148813,0.00014787,2]
[422818379,1779461443000,-150.0,0.00014737,2]
[422818378,1779461443000,-495.0,0.000147,2]
[422818384,1779461443000,-24366.7861496,0.00014787,2]
[422818381,1779461443000,-176.61049077,0.0001475,2]
[422818380,1779461443000,-200.0,0.00014747,2]
[422818372,1779461443000,-480.7,0.00014669,2]
[422818374,1779461443000,-2315.0,0.0001468,2]
[422818386,1779461443000,-89971.9025867,0.00014788,2]
[422818373,1779461443000,-970.0,0.0001468,2]
[422818376,1779461443000,-11657.15386506,0.000147,2]
[422818377,1779461443000,-3133.0,0.000147,2]
[422818390,1779461445000,-268.78933997,0.00013931,2]
[422818389,1779461445000,-500.0,0.00012953,2]
[422818392,1779461446000,-910.38933997,0.000147,2]
[422818391,1779461446000,-149.21066003,0.00013931,2]
[422818400,1779461662000,152.0,0.00018036,30]
[422818401,1779461740000,-150.0,0.00010845,2]
[422818402,1779462000000,274.0,0.00028082,120]
[422818410,1779462151000,-150.0,0.00010666,2]
[422818412,1779462179000,159.55,5.524e-05,2]
[422818413,1779462179000,159.55,6.114e-05,2]
[422818414,1779462179000,159.55,6.703e-05,2]
[422818417,1779462180000,159.55,8.472e-05,2]
[422818416,1779462180000,159.55,7.883e-05,2]
[422818415,1779462180000,159.55,7.293e-05,2]
[422818420,1779462540000,1000.0,0.00028081,120]
[422818423,1779462555000,-221.61142597,9.357e-05,2]
[422818422,1779462555000,-250.0,9.357e-05,2]
[422818421,1779462555000,-159.55,9.062e-05,2]
[422818454,1779462632000,-159.55,0.00010241,2]
[422818456,1779462632000,-1200.0,0.00010377,2]
[422818453,1779462632000,-161.156439,9.918e-05,2]
[422818449,1779462632000,-6144.83386815,9.357e-05,2]
[422818452,1779462632000,-323.11805946,9.652e-05,2]
[422818450,1779462632000,-158.8442374,9.504e-05,2]
[422818458,1779462632000,-300.0,0.00010424,2]
[422818457,1779462632000,-178.15,0.00010378,2]
[422818455,1779462632000,-250.0,0.00010293,2]
[422818451,1779462632000,-159.55,9.652e-05,2]
[422818460,1779462632000,-2772.44,0.00010425,2]
[422818459,1779462632000,-300.0,0.00010424,2]
[422818469,1779462632000,-6247.84,0.00010475,2]
[422818468,1779462632000,-499.99,0.00010475,2]
[422818466,1779462632000,-999.99,0.00010475,2]
[422818467,1779462632000,-433.82,0.00010475,2]
[422818465,1779462632000,-299.99,0.00010475,2]
[422818463,1779462632000,-9174.61,0.00010475,2]
[422818461,1779462632000,-298.64,0.00010459,2]
[422818462,1779462632000,-2000.0,0.00010473,2]
[422818464,1779462632000,-9999.99,0.00010475,2]
[422818507,1779462633000,-690.5401,0.00011965,2]
[422818509,1779462633000,-2500.0,0.00011965,2]
[422818498,1779462633000,-500.0,0.00011748,2]
[422818505,1779462633000,-2000.0,0.00011782,2]
[422818501,1779462633000,-526.64877655,0.00011748,2]
[422818502,1779462633000,-500.0,0.00011748,2]
[422818500,1779462633000,-500.0,0.00011748,2]
[422818499,1779462633000,-500.0,0.00011748,2]
[422818503,1779462633000,-500.0,0.00011748,2]
[422818504,1779462633000,-177.09990339,0.00011748,2]
[422818496,1779462633000,-166.66,0.00011661,2]
[422818512,1779462633000,-250.0,0.00011974,2]
[422818508,1779462633000,-5000.0,0.00011965,2]
[422818513,1779462633000,-300.8026464,0.00011979,2]
[422818510,1779462633000,-17972.97136096,0.00011965,2]
[422818514,1779462633000,-500.0,0.00012022,2]
[422818519,1779462633000,-160.0,0.00012118,2]
[422818517,1779462633000,-53217.56,0.00012055,2]
[422818516,1779462633000,-160.25120112,0.00012052,2]
[422818515,1779462633000,-166.66,0.00012034,2]
[422818511,1779462633000,-8060.68176712,0.00011965,2]
[422818522,1779462633000,-17972.9713609,0.00012291,2]
[422818506,1779462633000,-318.9,0.00011957,2]
[422818518,1779462633000,-151.0,0.00012062,2]
[422818497,1779462633000,-746.53,0.0001169,2]
[422818481,1779462633000,-150.0,0.00010959,2]
[422818493,1779462633000,-746.53,0.00011425,2]
[422818520,1779462633000,-255.0,0.0001215,2]
[422818471,1779462633000,-150.99,0.00010475,2]
[422818470,1779462633000,-9999.99,0.00010475,2]
[422818472,1779462633000,-353.18,0.00010475,2]
[422818473,1779462633000,-323.11805945,0.00010487,2]
[422818474,1779462633000,-746.53,0.00010628,2]
[422818476,1779462633000,-2481.62,0.00010676,2]
[422818475,1779462633000,-318.9,0.00010628,2]
[422818477,1779462633000,-4805.6,0.00010699,2]
[422818479,1779462633000,-683.89,0.00010847,2]
[422818484,1779462633000,-150.0,0.00011096,2]
[422818492,1779462633000,-323.11805945,0.00011422,2]
[422818478,1779462633000,-159.55,0.00010831,2]
[422818480,1779462633000,-746.53,0.00010893,2]
[422818482,1779462633000,-416.0,0.00011091,2]
[422818485,1779462633000,-1000.0,0.00011157,2]
[422818486,1779462633000,-746.53,0.00011159,2]
[422818488,1779462633000,-525.44,0.00011233,2]
[422818489,1779462633000,-166.66,0.00011288,2]
[422818487,1779462633000,-500.0,0.0001118,2]
[422818490,1779462633000,-169.29,0.0001137,2]
[422818495,1779462633000,-695.83915323,0.00011521,2]
[422818491,1779462633000,-1680.0,0.00011414,2]
[422818494,1779462633000,-420.0,0.00011461,2]
[422818483,1779462633000,-500.0,0.00011096,2]
[422818521,1779462633000,-208.7374384,0.00012225,2]
[422818559,1779462633000,-150.0,0.00013241,2]
[422818525,1779462633000,-420.0,0.0001236,2]
[422818552,1779462633000,-150.0,0.00013096,2]
[422818554,1779462633000,-813.0,0.00013135,5]
[422818557,1779462633000,-150.0,0.00013205,2]
[422818555,1779462633000,-150.0,0.00013151,2]
[422818577,1779462633000,-300.8026464,0.0001344,2]
[422818558,1779462633000,-8060.68176712,0.00013223,2]
[422818560,1779462633000,-150.0,0.0001326,2]
[422818556,1779462633000,-166.66,0.00013151,2]
[422818562,1779462633000,-17972.9713609,0.00013269,2]
[422818561,1779462633000,-169.29,0.00013265,2]
[422818564,1779462633000,-150.0,0.00013297,2]
[422818553,1779462633000,-230.28507,0.00013134,2]
[422818565,1779462633000,-150.0,0.00013297,2]
[422818566,1779462633000,-150.0,0.00013297,2]
[422818568,1779462633000,-150.0,0.00013315,2]
[422818569,1779462633000,-186.141898,0.00013323,2]
[422818570,1779462633000,-384.019667,0.00013323,2]
[422818571,1779462633000,-150.0,0.0001337,2]
[422818572,1779462633000,-1588.0,0.000134,2]
[422818573,1779462633000,-163.0,0.000134,2]
[422818575,1779462633000,-163.0,0.000134,2]
[422818574,1779462633000,-163.0,0.000134,2]
[422818576,1779462633000,-150.0,0.00013425,2]
[422818523,1779462633000,-500.0,0.00012296,2]
[422818567,1779462633000,-433.0,0.00013304,2]
[422818550,1779462633000,-251.158888,0.00013069,2]
[422818563,1779462633000,-318.9,0.00013285,2]
[422818551,1779462633000,-2000.0,0.00013091,2]
[422818547,1779462633000,-178.645389,0.00013004,2]
[422818526,1779462633000,-8060.68176712,0.00012384,2]
[422818528,1779462633000,-2351.0,0.00012556,2]
[422818524,1779462633000,-302.57,0.00012329,2]
[422818530,1779462633000,-587.0,0.00012602,2]
[422818531,1779462633000,-17972.9713609,0.00012617,2]
[422818529,1779462633000,-500.0,0.0001257,2]
[422818533,1779462633000,-8060.68176712,0.00012804,2]
[422818532,1779462633000,-166.66,0.00012779,2]
[422818536,1779462633000,-150.0,0.00012822,2]
[422818534,1779462633000,-150.0,0.00012822,2]
[422818535,1779462633000,-150.0,0.00012822,2]
[422818527,1779462633000,-166.66,0.00012406,2]
[422818540,1779462633000,-150.0,0.00012822,2]
[422818538,1779462633000,-150.0,0.00012822,2]
[422818546,1779462633000,-204.588913,0.00013004,2]
[422818548,1779462633000,-150.0,0.00013041,2]
[422818549,1779462633000,-150.0,0.00013059,2]
[422818545,1779462633000,-150.0,0.00012986,2]
[422818542,1779462633000,-150.0,0.00012877,2]
[422818543,1779462633000,-150.0,0.00012932,2]
[422818541,1779462633000,-194.86623922,0.00012844,2]
[422818539,1779462633000,-150.0,0.00012822,2]
[422818537,1779462633000,-150.0,0.00012822,2]
[422818544,1779462633000,-17972.9713609,0.00012943,2]
[422818616,1779462634000,-500.0,0.00013698,2]
[422818613,1779462634000,-500.0,0.00013698,2]
[422818612,1779462634000,-500.0,0.00013698,2]
[422818611,1779462634000,-508.06821026,0.00013698,2]
[422818606,1779462634000,-500.0,0.00013698,2]
[422818618,1779462634000,-500.0,0.00013698,2]
[422818615,1779462634000,-500.0,0.00013698,2]
[422818610,1779462634000,-500.0,0.00013698,2]
[422818617,1779462634000,-500.0,0.00013698,2]
[422818609,1779462634000,-500.0,0.00013698,2]
[422818608,1779462634000,-500.0,0.00013698,2]
[422818614,1779462634000,-500.0,0.00013698,2]
[422818629,1779462634000,-500.0,0.00013698,2]
[422818621,1779462634000,-946.2,0.00013698,2]
[422818619,1779462634000,-946.2,0.00013698,2]
[422818630,1779462634000,-351.16,0.00013698,2]
[422818625,1779462634000,-500.0,0.00013698,2]
[422818622,1779462634000,-946.2,0.00013698,2]
[422818628,1779462634000,-500.0,0.00013698,2]
[422818623,1779462634000,-500.0,0.00013698,2]
[422818624,1779462634000,-500.0,0.00013698,2]
[422818627,1779462634000,-500.0,0.00013698,2]
[422818626,1779462634000,-500.0,0.00013698,2]
[422818607,1779462634000,-500.0,0.00013698,2]
[422818620,1779462634000,-946.2,0.00013698,2]
[422818600,1779462634000,-500.0,0.00013698,2]
[422818583,1779462634000,-150.0,0.00013534,2]
[422818602,1779462634000,-506.46359412,0.00013698,2]
[422818632,1779462634000,-500.0,0.00013698,2]
[422818579,1779462634000,-1224.0,0.00013497,2]
[422818582,1779462634000,-150.0,0.00013534,2]
[422818578,1779462634000,-150.0,0.00013479,2]
[422818580,1779462634000,-6059.0,0.00013497,2]
[422818581,1779462634000,-3634.0,0.00013497,2]
[422818585,1779462634000,-150.0,0.00013589,2]
[422818584,1779462634000,-150.0,0.00013534,2]
[422818589,1779462634000,-500.0,0.0001363,2]
[422818588,1779462634000,-1889.79,0.00013608,2]
[422818587,1779462634000,-453.80487874,0.00013598,2]
[422818586,1779462634000,-17972.9713609,0.00013596,2]
[422818594,1779462634000,-8060.68176712,0.00013642,2]
[422818592,1779462634000,-500.0,0.0001363,2]
[422818591,1779462634000,-500.0,0.0001363,2]
[422818590,1779462634000,-500.0,0.0001363,2]
[422818593,1779462634000,-941.0,0.0001363,2]
[422818595,1779462634000,-150.0,0.00013644,2]
[422818596,1779462634000,-500.0,0.00013698,2]
[422818604,1779462634000,-500.0,0.00013698,2]
[422818605,1779462634000,-512.53865317,0.00013698,2]
[422818597,1779462634000,-500.0,0.00013698,2]
[422818598,1779462634000,-358.78278527,0.00013698,2]
[422818601,1779462634000,-500.0,0.00013698,2]
[422818599,1779462634000,-500.0,0.00013698,2]
[422818603,1779462634000,-500.0,0.00013698,2]
[422818633,1779462634000,-500.0,0.00013698,2]
[422818647,1779462634000,-200.0,0.00013699,2]
[422818635,1779462634000,-623.51818685,0.00013698,2]
[422818664,1779462634000,-17972.9713609,0.00013922,2]
[422818663,1779462634000,-150.0,0.00013918,2]
[422818667,1779462634000,-150.0,0.00013931,2]
[422818666,1779462634000,-170.0,0.00013931,2]
[422818665,1779462634000,-150.0,0.00013931,2]
[422818671,1779462634000,-150.0,0.00013931,2]
[422818668,1779462634000,-150.0,0.00013931,2]
[422818631,1779462634000,-500.0,0.00013698,2]
[422818670,1779462634000,-150.0,0.00013931,2]
[422818673,1779462634000,-3550.706,0.00013931,2]
[422818684,1779462634000,-1588.0,0.0001404,2]
[422818674,1779462634000,-626.133,0.00013931,2]
[422818675,1779462634000,-927.0,0.00013931,2]
[422818681,1779462634000,-250.0,0.00014,2]
[422818677,1779462634000,-150.0,0.00013931,2]
[422818678,1779462634000,-166.66,0.00013973,2]
[422818676,1779462634000,-1271.0,0.00013931,2]
[422818682,1779462634000,-150.0,0.00014009,2]
[422818680,1779462634000,-174.554394,0.00013989,2]
[422818679,1779462634000,-150.0,0.00013973,2]
[422818683,1779462634000,-150.0,0.00014027,2]
[422818686,1779462634000,-2315.0,0.0001404,2]
[422818685,1779462634000,-1588.0,0.0001404,2]
[422818687,1779462634000,-1588.0,0.0001404,2]
[422818688,1779462634000,-163.579221,0.00014059,2]
[422818661,1779462634000,-150.0,0.00013863,2]
[422818662,1779462634000,-576.0,0.00013904,2]
[422818669,1779462634000,-150.0,0.00013931,2]
[422818657,1779462634000,-150.0,0.00013808,2]
[422818634,1779462634000,-500.0,0.00013698,2]
[422818636,1779462634000,-500.0,0.00013698,2]
[422818642,1779462634000,-500.0,0.00013698,2]
[422818672,1779462634000,-1355.0,0.00013931,2]
[422818640,1779462634000,-500.0,0.00013698,2]
[422818638,1779462634000,-500.0,0.00013698,2]
[422818641,1779462634000,-500.0,0.00013698,2]
[422818637,1779462634000,-504.25996509,0.00013698,2]
[422818643,1779462634000,-500.0,0.00013698,2]
[422818644,1779462634000,-150.0,0.00013699,2]
[422818645,1779462634000,-756.93,0.00013699,2]
[422818649,1779462634000,-2315.0,0.0001372,2]
[422818639,1779462634000,-500.0,0.00013698,2]
[422818646,1779462634000,-166.66,0.00013699,2]
[422818658,1779462634000,-3292.0,0.00013811,2]
[422818648,1779462634000,-2315.0,0.0001372,2]
[422818655,1779462634000,-150.0,0.00013772,2]
[422818660,1779462634000,-823.0,0.00013856,2]
[422818659,1779462634000,-166.66,0.00013836,2]
[422818656,1779462634000,-150.0,0.00013772,2]
[422818652,1779462634000,-150.0,0.00013732,2]
[422818654,1779462634000,-150.0,0.00013772,2]
[422818651,1779462634000,-2315.0,0.0001372,2]
[422818650,1779462634000,-165.0,0.0001372,2]
[422818653,1779462634000,-150.0,0.00013753,2]
[422818697,1779462635000,-150.0,0.00014247,2]
[422818701,1779462635000,-150.0,0.00014247,2]
[422818700,1779462635000,-240.6157624,0.00014247,2]
[422818702,1779462635000,-166.66,0.00014247,2]
[422818703,1779462635000,-17972.9713609,0.00014248,2]
[422818706,1779462635000,-500.0,0.00014249,2]
[422818704,1779462635000,-453.80487873,0.00014249,2]
[422818705,1779462635000,-500.0,0.00014249,2]
[422818698,1779462635000,-150.00000001,0.00014247,2]
[422818692,1779462635000,-150.0,0.00014137,2]
[422818696,1779462635000,-150.0,0.00014222,2]
[422818695,1779462635000,-150.0,0.00014192,2]
[422818694,1779462635000,-201.954,0.00014168,2]
[422818691,1779462635000,-166.66,0.0001411,2]
[422818693,1779462635000,-4167.179,0.00014168,2]
[422818689,1779462635000,-8060.68176712,0.00014061,2]
[422818690,1779462635000,-150.0,0.00014082,2]
[422818707,1779462635000,-946.2,0.00014249,2]
[422818699,1779462635000,-150.0,0.00014247,2]
[422818712,1779462635000,-23313.93996082,0.0001425,2]
[422818722,1779462635000,-4013.10844987,0.0001425,2]
[422818711,1779462635000,-8878.40726305,0.0001425,2]
[422818708,1779462635000,-63940.31801879,0.0001425,2]
[422818728,1779462635000,-391.88,0.0001425,2]
[422818726,1779462635000,-480.07323018,0.0001425,2]
[422818727,1779462635000,-335.72,0.0001425,2]
[422818729,1779462635000,-36445.81872223,0.0001425,2]
[422818723,1779462635000,-1274.97908224,0.0001425,2]
[422818725,1779462635000,-7727.8677546,0.0001425,2]
[422818724,1779462635000,-698.170416,0.0001425,2]
[422818720,1779462635000,-1356.23989523,0.0001425,2]
[422818721,1779462635000,-987.95536,0.0001425,2]
[422818719,1779462635000,-607.56498033,0.0001425,2]
[422818718,1779462635000,-1643.28648699,0.0001425,2]
[422818716,1779462635000,-1364.94274319,0.0001425,2]
[422818717,1779462635000,-8732.43012666,0.0001425,2]
[422818714,1779462635000,-672.09,0.0001425,2]
[422818715,1779462635000,-1421.69894956,0.0001425,2]
[422818713,1779462635000,-13412.9404694,0.0001425,2]
[422818709,1779462635000,-270.808128,0.0001425,2]
[422818710,1779462635000,-17775.46802368,0.0001425,2]
[422818735,1779462638000,-500.0,0.00012052,2]
[422818738,1779462638000,-308.46731456,0.00012052,2]
[422818736,1779462638000,-500.0,0.00012052,2]
[422818741,1779462638000,-60.14507896,0.00012052,2]
[422818740,1779462638000,-381.32124815,0.00012052,2]
[422818739,1779462638000,-118.67875185,0.00012052,2]
[422818737,1779462638000,-192.85393359,0.00012052,2]
[422818774,1779462640000,-500.0,0.00012052,2]
[422818782,1779462640000,-500.0,0.00012052,2]
[422818772,1779462640000,-500.0,0.00012052,2]
[422818775,1779462640000,-278.25874186,0.00012052,2]
[422818773,1779462640000,-500.0,0.00012052,2]
[422818781,1779462640000,-500.0,0.00012052,2]
[422818780,1779462640000,-500.0,0.00012052,2]
[422818778,1779462640000,-500.0,0.00012052,2]
[422818776,1779462640000,-500.0,0.00012052,2]
[422818777,1779462640000,-500.0,0.00012052,2]
[422818794,1779462640000,-151.0,0.0001425,2]
[422818795,1779462640000,-1587.0,0.0001436,2]
[422818783,1779462640000,-500.0,0.00012052,2]
[422818785,1779462640000,-151.0,0.0001425,2]
[422818786,1779462640000,-151.0,0.0001425,2]
[422818788,1779462640000,-920.455532,0.0001425,2]
[422818791,1779462640000,-920.455532,0.0001425,2]
[422818789,1779462640000,-156.624335,0.0001425,2]
[422818787,1779462640000,-920.455532,0.0001425,2]
[422818779,1779462640000,-500.0,0.00012052,2]
[422818784,1779462640000,-190662.917445,0.0001425,2]
[422818770,1779462640000,-500.0,0.00012052,2]
[422818759,1779462640000,-500.0,0.00012052,2]
[422818769,1779462640000,-500.0,0.00012052,2]
[422818747,1779462640000,-439.85492104,0.00012052,2]
[422818748,1779462640000,-500.0,0.00012052,2]
[422818749,1779462640000,-500.0,0.00012052,2]
[422818757,1779462640000,-500.0,0.00012052,2]
[422818750,1779462640000,-500.0,0.00012052,2]
[422818754,1779462640000,-500.0,0.00012052,2]
[422818756,1779462640000,-500.0,0.00012052,2]
[422818753,1779462640000,-500.0,0.00012052,2]
[422818755,1779462640000,-500.0,0.00012052,2]
[422818752,1779462640000,-500.0,0.00012052,2]
[422818771,1779462640000,-500.0,0.00012052,2]
[422818751,1779462640000,-500.0,0.00012052,2]
[422818758,1779462640000,-500.0,0.00012052,2]
[422818760,1779462640000,-500.0,0.00012052,2]
[422818766,1779462640000,-500.0,0.00012052,2]
[422818762,1779462640000,-500.0,0.00012052,2]
[422818761,1779462640000,-500.0,0.00012052,2]
[422818764,1779462640000,-500.0,0.00012052,2]
[422818763,1779462640000,-500.0,0.00012052,2]
[422818768,1779462640000,-500.0,0.00012052,2]
[422818765,1779462640000,-500.0,0.00012052,2]
[422818767,1779462640000,-500.0,0.00012052,2]
[422818792,1779462640000,-151.0,0.0001425,2]
[422818790,1779462640000,-920.455532,0.0001425,2]
[422818793,1779462640000,-151.0,0.0001425,2]
[422818799,1779462640000,-2000.0,0.000144,2]
[422818826,1779462640000,-497816.2352551,0.00014726,2]
[422818830,1779462640000,-920.455532,0.00014726,2]
[422818832,1779462640000,-920.455532,0.00014726,2]
[422818831,1779462640000,-920.455532,0.00014726,2]
[422818825,1779462640000,-7824.8704669,0.00014726,2]
[422818828,1779462640000,-241020.1240319,0.00014726,2]
[422818829,1779462640000,-151.0,0.00014726,2]
[422818827,1779462640000,-1148.9468889,0.00014726,2]
[422818835,1779462640000,-151.0,0.00014726,2]
[422818834,1779462640000,-151.0,0.00014726,2]
[422818824,1779462640000,-300.0,0.00014725,2]
[422818833,1779462640000,-920.455532,0.00014726,2]
[422818836,1779462640000,-151.0,0.00014726,2]
[422818796,1779462640000,-1588.0,0.0001436,2]
[422818840,1779462640000,-187.957931,0.00014726,2]
[422818842,1779462640000,-187.957931,0.00014726,2]
[422818843,1779462640000,-187.957931,0.00014726,2]
[422818839,1779462640000,-151.0,0.00014726,2]
[422818841,1779462640000,-151.0,0.00014726,2]
[422818845,1779462640000,-38878.0436455,0.00014727,2]
[422818844,1779462640000,-3349.3874501,0.00014727,2]
[422818846,1779462640000,-1163.5806906,0.00014727,2]
[422818837,1779462640000,-38725.7639975,0.00014726,2]
[422818819,1779462640000,-152.0,0.00014699,3]
[422818838,1779462640000,-151.0,0.00014726,2]
[422818820,1779462640000,-10605.53218533,0.000147,2]
[422818818,1779462640000,-167.06305135,0.00014695,2]
[422818797,1779462640000,-1588.0,0.0001436,2]
[422818800,1779462640000,-8060.68176712,0.00014481,2]
[422818801,1779462640000,-886.49714837,0.00014502,2]
[422818808,1779462640000,-10000.0,0.00014655,2]
[422818798,1779462640000,-166.66,0.00014384,2]
[422818802,1779462640000,-736.0,0.00014569,2]
[422818804,1779462640000,-921.0,0.0001458,5]
[422818803,1779462640000,-17972.9713609,0.00014574,2]
[422818806,1779462640000,-6498.4441,0.00014626,2]
[422818805,1779462640000,-318.9,0.00014613,2]
[422818807,1779462640000,-480.71389535,0.00014652,2]
[422818821,1779462640000,-178.06542539,0.000147,2]
[422818816,1779462640000,-152.0,0.0001469,7]
[422818809,1779462640000,-1588.0,0.0001468,2]
[422818815,1779462640000,-200.0,0.00014682,2]
[422818813,1779462640000,-2315.0,0.0001468,2]
[422818812,1779462640000,-2315.0,0.0001468,2]
[422818817,1779462640000,-152.0,0.0001469,7]
[422818810,1779462640000,-1588.0,0.0001468,2]
[422818822,1779462640000,-150.0,0.00014712,2]
[422818823,1779462640000,-487.54959832,0.00014716,2]
[422818811,1779462640000,-2315.0,0.0001468,2]
[422818880,1779462641000,-700.0,0.0001497,2]
[422818866,1779462641000,-1100.0,0.0001487,2]
[422818878,1779462641000,-500.0,0.0001497,2]
[422818864,1779462641000,-649.02086,0.0001485,2]
[422818862,1779462641000,-649.02085,0.0001485,2]
[422818870,1779462641000,-300.8026464,0.000149,2]
[422818873,1779462641000,-299.44019908,0.000149,2]
[422818871,1779462641000,-8060.68176712,0.000149,2]
[422818875,1779462641000,-2918.00577944,0.0001492,2]
[422818872,1779462641000,-17972.9713609,0.000149,2]
[422818879,1779462641000,-700.0,0.0001497,2]
[422818863,1779462641000,-649.02085,0.0001485,2]
[422818869,1779462641000,-453.80487873,0.000149,2]
[422818868,1779462641000,-15000.0,0.00014897,2]
[422818855,1779462641000,-151.0,0.00014788,2]